fUSD/lending_fUSD_20260217
["ID","MTS","AMOUNT","RATE_DAILY","PERIOD"]
[405778404,1771300242611,-200.0,0.00010548,2]
[405778405,1771300242620,-822.15179644,0.00010581,2]
[405778406,1771300242630,-478.26030593,0.00010581,2]
[405778407,1771300242639,-3875.73449089,0.00010581,2]
[405778408,1771300242649,-566.2655769,0.00010581,2]
[405778409,1771300242658,-9484.086306,0.00010594,2]
[405778410,1771300242669,-433.0,0.00010681,2]
[405778411,1771300242679,-500.0,0.00010691,2]
[405778412,1771300242690,-2351.0,0.0001078,2]
[405778413,1771300242700,-1800.39694556,0.00010831,2]
[405778414,1771300242711,-5300.13656816,0.000109,2]
[405778415,1771300242721,-5300.13656815,0.000109,2]
[405778416,1771300242730,-500.0,0.00010959,2]
[405778417,1771300242740,-226.88409827,0.00010959,2]
[405778418,1771300242752,-166.66,0.00010959,2]
[405778419,1771300242762,-500.0,0.00010965,2]
[405778420,1771300242772,-164.61380668,0.00010973,2]
[405778421,1771300242782,-500.0,0.00010973,2]
[405778422,1771300242792,-500.81972658,0.00010973,2]
[405778423,1771300242802,-500.0,0.00010973,2]
[405778424,1771300242812,-160.37289206,0.00010973,2]
[405778425,1771300242822,-503.06752739,0.00010973,2]
[405778426,1771300242832,-500.0,0.00010973,2]
[405778427,1771300242842,-502.12798245,0.00010973,2]
[405778428,1771300242852,-500.86147052,0.00010973,2]
[405778429,1771300242861,-500.32111708,0.00010973,2]
[405778430,1771300242872,-239.8459294,0.00010973,2]
[405778431,1771300242882,-500.0,0.00010973,2]
[405778432,1771300242891,-838.61447056,0.00010984,2]
[405778433,1771300242901,-166.66,0.00011068,2]
[405778434,1771300242911,-500.0,0.00011096,2]
[405778435,1771300242921,-200.0,0.00011096,2]
[405778436,1771300242931,-24864.33084889,0.00011099,2]
[405778437,1771300242941,-24864.33084881,0.00011099,2]
[405778438,1771300242950,-24864.33084881,0.00011099,2]
[405778440,1771300242960,-7027.12726409,0.00011111,2]
[405778441,1771300242970,-166.66,0.00011178,2]
[405778442,1771300242980,-504.47430688,0.00011239,2]
[405778443,1771300242989,-166.66,0.00011288,2]
[405778444,1771300242999,-1600.0,0.00011303,2]
[405778445,1771300243008,-250.0,0.00011354,2]
[405778447,1771300243018,-166.66,0.00011397,2]
[405778449,1771300243028,-5300.13656815,0.00011474,2]
[405778451,1771300243038,-166.66,0.00011507,2]
[405778452,1771300243047,-500.97291215,0.00011521,2]
[405778453,1771300243057,-1000.0,0.00011521,2]
[405778454,1771300243067,-1000.0,0.00011521,2]
[405778455,1771300243077,-643.23767655,0.00011521,2]
[405778456,1771300243087,-609.52608378,0.00011521,2]
[405778457,1771300243096,-829.56580145,0.00011521,2]
[405778458,1771300243106,-1500.0,0.00011545,2]
[405778459,1771300243116,-500.0,0.00011644,2]
[405778460,1771300243126,-200.0,0.00011644,2]
[405778461,1771300243136,-3292.0,0.00011858,2]
[405778462,1771300243145,-24864.33084881,0.00011902,2]
[405778463,1771300243156,-30336.8,0.00012055,2]
[405778464,1771300243165,-1500.0,0.00012068,2]
[405778465,1771300243175,-1500.0,0.00012068,2]
[405778466,1771300243185,-500.0,0.00012192,2]
[405778467,1771300243198,-200.0,0.00012192,2]
[405778468,1771300243208,-1600.0,0.00012331,2]
[405778469,1771300243218,-1799.80965345,0.00012616,2]
[405778470,1771300243228,-2000.0,0.00012616,2]
[405778471,1771300243239,-503.55960548,0.0001274,2]
[405778472,1771300243249,-201.77822118,0.0001274,2]
[405778473,1771300243258,-5300.13656815,0.00012759,2]
[405778474,1771300243269,-9999.99,0.00012893,2]
[405778475,1771300243279,-1401.0,0.00012893,2]
[405778476,1771300243288,-29999.99,0.00012893,2]
[405778477,1771300243298,-24864.33084881,0.00012902,2]
[405778479,1771300243308,-4609.0,0.00013043,2]
[405778481,1771300243318,-2500.0,0.00013164,2]
[405778482,1771300243328,-1835.557714,0.00013243,2]
[405778483,1771300243338,-11380.903568,0.00013243,2]
[405778484,1771300243348,-227.20890354,0.00013402,2]
[405778485,1771300243358,-14600.31122172,0.00013402,2]
[405778486,1771300243368,-3240.0,0.00013425,2]
[405778487,1771300243377,-788.00311282,0.00013478,2]
[405778488,1771300243387,-151.0,0.00013695,2]
[405778489,1771300243396,-500.0,0.00013698,2]
[405778490,1771300243406,-500.0,0.00013698,2]
[405778491,1771300243416,-500.0,0.00013698,2]
[405778492,1771300243425,-500.0,0.00013698,2]
[405778493,1771300243436,-500.0,0.00013698,2]
[405778494,1771300243446,-500.0,0.00013698,2]
[405778495,1771300243455,-500.0,0.00013698,2]
[405778496,1771300243464,-500.0,0.00013698,2]
[405778497,1771300243474,-500.0,0.00013698,2]
[405778498,1771300243484,-500.0,0.00013698,2]
[405778499,1771300243493,-500.0,0.00013698,2]
[405778500,1771300243503,-500.0,0.00013698,2]
[405778501,1771300243513,-500.0,0.00013698,2]
[405778502,1771300243523,-500.0,0.00013698,2]
[405778503,1771300243533,-500.0,0.00013698,2]
[405778504,1771300243543,-500.0,0.00013698,2]
[405778505,1771300243552,-500.0,0.00013698,2]
[405778506,1771300243562,-500.0,0.00013698,2]
[405778507,1771300243571,-500.0,0.00013698,2]
[405778508,1771300243582,-161.76553767,0.00013698,2]
[405778509,1771300243593,-500.0,0.00013698,2]
[405778510,1771300243602,-205.75338066,0.00013698,2]
[405778511,1771300243612,-503.24510855,0.00013698,2]
[405778512,1771300243622,-500.0,0.00013698,2]
[405778513,1771300243632,-500.0,0.00013698,2]
[405778514,1771300243642,-500.0,0.00013698,2]
[405778515,1771300243652,-500.0,0.00013698,2]
[405778516,1771300243662,-500.0,0.00013698,2]
[405778517,1771300243671,-500.0,0.00013698,2]
[405778518,1771300243681,-500.0,0.00013698,2]
[405778519,1771300243690,-500.0,0.00013698,2]
[405778520,1771300243700,-500.0,0.00013698,2]
[405778521,1771300243709,-154.45149982,0.00013698,2]
[405778522,1771300243718,-679.08,0.00013698,2]
[405778523,1771300243728,-679.08,0.00013698,2]
[405778524,1771300243737,-679.08,0.00013698,2]
[405778525,1771300243747,-679.08,0.00013698,2]
[405778526,1771300243756,-679.08,0.00013698,2]
[405778527,1771300243765,-679.08,0.00013698,2]
[405778528,1771300243775,-679.08,0.00013698,2]
[405778529,1771300243784,-679.08,0.00013698,2]
[405778530,1771300243794,-679.08,0.00013698,2]
[405778531,1771300243803,-679.08,0.00013698,2]
[405778532,1771300243812,-679.08,0.00013698,2]
[405778533,1771300243822,-679.08,0.00013698,2]
[405778534,1771300243831,-679.08,0.00013698,2]
[405778535,1771300243841,-679.08,0.00013698,2]
[405778536,1771300243850,-679.08,0.00013698,2]
[405778537,1771300243859,-679.08,0.00013698,2]
[405778538,1771300243869,-679.08,0.00013698,2]
[405778539,1771300243878,-679.08,0.00013698,2]
[405778540,1771300243887,-500.0,0.00013698,2]
[405778541,1771300243897,-500.0,0.00013698,2]
[405778542,1771300243906,-400.27334963,0.00013698,2]
[405778543,1771300243915,-500.0,0.00013698,2]
[405778544,1771300243925,-500.0,0.00013698,2]
[405778545,1771300243934,-500.0,0.00013698,2]
[405778546,1771300243944,-500.0,0.00013698,2]
[405778547,1771300243954,-500.0,0.00013698,2]
[405778548,1771300243963,-500.0,0.00013698,2]
[405778549,1771300243973,-500.0,0.00013698,2]
[405778550,1771300243982,-500.0,0.00013698,2]
[405778551,1771300243992,-500.0,0.00013698,2]
[405778552,1771300244001,-500.0,0.00013698,2]
[405778553,1771300244010,-500.0,0.00013698,2]
[405778554,1771300244020,-500.0,0.00013698,2]
[405778555,1771300244030,-500.0,0.00013698,2]
[405778556,1771300244039,-500.0,0.00013698,2]
[405778557,1771300244049,-500.0,0.00013698,2]
[405778558,1771300244058,-500.0,0.00013698,2]
[405778559,1771300244067,-500.0,0.00013698,2]
[405778560,1771300244077,-500.0,0.00013698,2]
[405778561,1771300244087,-500.0,0.00013698,2]
[405778562,1771300244097,-500.0,0.00013698,2]
[405778563,1771300244107,-500.0,0.00013698,2]
[405778564,1771300244117,-500.0,0.00013698,2]
[405778565,1771300244127,-500.0,0.00013698,2]
[405778566,1771300244136,-500.0,0.00013698,2]
[405778567,1771300244145,-500.0,0.00013698,2]
[405778568,1771300244155,-500.0,0.00013698,2]
[405778569,1771300244165,-500.0,0.00013698,2]
[405778570,1771300244174,-500.0,0.00013698,2]
[405778571,1771300244184,-500.0,0.00013698,2]
[405778572,1771300244196,-500.0,0.00013698,2]
[405778573,1771300244206,-500.0,0.00013698,2]
[405778574,1771300244215,-500.0,0.00013698,2]
[405778575,1771300244224,-500.0,0.00013698,2]
[405778576,1771300244235,-500.0,0.00013698,2]
[405778577,1771300244245,-500.0,0.00013698,2]
[405778578,1771300244254,-500.0,0.00013698,2]
[405778579,1771300244265,-500.0,0.00013698,2]
[405778580,1771300244275,-500.0,0.00013698,2]
[405778581,1771300244284,-500.0,0.00013698,2]
[405778582,1771300244294,-500.0,0.00013698,2]
[405778583,1771300244304,-500.0,0.00013698,2]
[405778584,1771300244313,-500.0,0.00013698,2]
[405778585,1771300244323,-500.0,0.00013698,2]
[405778586,1771300244332,-500.0,0.00013698,2]
[405778587,1771300244342,-500.0,0.00013698,2]
[405778588,1771300244351,-500.0,0.00013698,2]
[405778589,1771300244359,-500.0,0.00013698,2]
[405778590,1771300244369,-500.0,0.00013698,2]
[405778591,1771300244378,-500.0,0.00013698,2]
[405778592,1771300244387,-500.0,0.00013698,2]
[405778593,1771300244396,-500.0,0.00013698,2]
[405778594,1771300244406,-500.0,0.00013698,2]
[405778595,1771300244415,-500.0,0.00013698,2]
[405778596,1771300244425,-500.0,0.00013698,2]
[405778597,1771300244434,-1125.16,0.00013698,2]
[405778598,1771300244444,-1125.16,0.00013698,2]
[405778599,1771300244453,-1125.16,0.00013698,2]
[405778600,1771300244463,-1125.16,0.00013698,2]
[405778601,1771300244472,-1125.16,0.00013698,2]
[405778602,1771300244482,-500.0,0.00013698,2]
[405778603,1771300244491,-1125.16,0.00013698,2]
[405778604,1771300244501,-1125.16,0.00013698,2]
[405778605,1771300244510,-1125.16,0.00013698,2]
[405778606,1771300244520,-500.0,0.00013698,2]
[405778607,1771300244530,-1125.16,0.00013698,2]
[405778608,1771300244539,-500.0,0.00013698,2]
[405778609,1771300244549,-1125.16,0.00013698,2]
[405778610,1771300244559,-522.2154278,0.00013698,2]
[405778611,1771300244569,-1125.16,0.00013698,2]
[405778612,1771300244579,-1125.16,0.00013698,2]
[405778613,1771300244589,-1125.16,0.00013698,2]
[405778614,1771300244599,-1125.16,0.00013698,2]
[405778615,1771300244609,-1125.16,0.00013698,2]
[405778616,1771300244619,-1125.16,0.00013698,2]
[405778617,1771300244628,-1125.16,0.00013698,2]
[405778618,1771300244638,-1125.16,0.00013698,2]
[405778619,1771300244647,-456.05800986,0.00013698,2]
[405778620,1771300244658,-500.0,0.00013698,2]
[405778621,1771300244667,-500.0,0.00013698,2]
[405778622,1771300244677,-500.0,0.00013698,2]
[405778623,1771300244686,-500.0,0.00013698,2]
[405778624,1771300244695,-500.0,0.00013698,2]
[405778625,1771300244704,-500.0,0.00013698,2]
[405778626,1771300244714,-500.0,0.00013698,2]
[405778627,1771300244723,-500.0,0.00013698,2]
[405778628,1771300244733,-500.0,0.00013698,2]
[405778629,1771300244742,-500.0,0.00013698,2]
[405778630,1771300244751,-430.55674509,0.00013698,2]
[405778631,1771300244761,-500.0,0.00013698,2]
[405778632,1771300244770,-500.0,0.00013698,2]
[405778633,1771300244780,-500.0,0.00013698,2]
[405778634,1771300244789,-500.0,0.00013698,2]
[405778635,1771300244799,-500.0,0.00013698,2]
[405778636,1771300244809,-500.0,0.00013698,2]
[405778637,1771300244819,-500.0,0.00013698,2]
[405778638,1771300244829,-500.0,0.00013698,2]
[405778639,1771300244839,-500.0,0.00013698,2]
[405778640,1771300244848,-500.0,0.00013698,2]
[405778641,1771300244858,-500.0,0.00013698,2]
[405778642,1771300244869,-500.0,0.00013698,2]
[405778643,1771300244879,-500.0,0.00013698,2]
[405778644,1771300244888,-500.0,0.00013698,2]
[405778645,1771300244897,-500.0,0.00013698,2]
[405778646,1771300244907,-500.0,0.00013698,2]
[405778647,1771300244917,-500.0,0.00013698,2]
[405778648,1771300244927,-500.0,0.00013698,2]
[405778649,1771300244937,-535.55684817,0.00013698,2]
[405778650,1771300244949,-506.79858148,0.00013698,2]
[405778651,1771300244958,-500.0,0.00013698,2]
[405778652,1771300244968,-500.0,0.00013698,2]
[405778653,1771300244978,-500.0,0.00013698,2]
[405778654,1771300244988,-639.90682726,0.00013698,2]
[405778655,1771300244997,-915.21,0.00013698,2]
[405778656,1771300245008,-915.21,0.00013698,2]
[405778657,1771300245017,-915.21,0.00013698,2]
[405778658,1771300245027,-915.21,0.00013698,2]
[405778659,1771300245037,-915.21,0.00013698,2]
[405778660,1771300245047,-915.21,0.00013698,2]
[405778661,1771300245056,-915.21,0.00013698,2]
[405778662,1771300245066,-915.21,0.00013698,2]
[405778663,1771300245076,-915.21,0.00013698,2]
[405778664,1771300245085,-915.21,0.00013698,2]
[405778665,1771300245095,-915.21,0.00013698,2]
[405778666,1771300245104,-915.21,0.00013698,2]
[405778667,1771300245115,-915.21,0.00013698,2]
[405778668,1771300245125,-915.21,0.00013698,2]
[405778669,1771300245135,-915.21,0.00013698,2]
[405778670,1771300245144,-915.21,0.00013698,2]
[405778671,1771300245153,-915.21,0.00013698,2]
[405778672,1771300245163,-915.21,0.00013698,2]
[405778673,1771300245173,-500.0,0.00013698,2]
[405778674,1771300245183,-500.0,0.00013698,2]
[405778675,1771300245195,-500.0,0.00013698,2]
[405778676,1771300245204,-307.44205355,0.00013698,2]
[405778677,1771300245214,-500.0,0.00013698,2]
[405778678,1771300245223,-500.0,0.00013698,2]
[405778679,1771300245235,-500.0,0.00013698,2]
[405778680,1771300245245,-500.0,0.00013698,2]
[405778681,1771300245254,-500.0,0.00013698,2]
[405778682,1771300245265,-500.0,0.00013698,2]
[405778683,1771300245275,-500.0,0.00013698,2]
[405778684,1771300245285,-500.0,0.00013698,2]
[405778685,1771300245295,-500.0,0.00013698,2]
[405778686,1771300245304,-500.0,0.00013698,2]
[405778687,1771300245314,-500.0,0.00013698,2]
[405778688,1771300245324,-500.0,0.00013698,2]
[405778689,1771300245334,-500.0,0.00013698,2]
[405778690,1771300245343,-500.0,0.00013698,2]
[405778691,1771300245353,-500.0,0.00013698,2]
[405778692,1771300245362,-500.0,0.00013698,2]
[405778693,1771300245371,-500.0,0.00013698,2]
[405778694,1771300245381,-286.9609652,0.00013698,2]
[405778695,1771300245392,-349.69131006,0.00013698,2]
[405778696,1771300245401,-500.0,0.00013698,2]
[405778697,1771300245411,-500.0,0.00013698,2]
[405778698,1771300245421,-500.0,0.00013698,2]
[405778699,1771300245431,-500.0,0.00013698,2]
[405778700,1771300245441,-511.5660924,0.00013698,2]
[405778701,1771300245452,-500.0,0.00013698,2]
[405778702,1771300245471,-529.40507312,0.00013698,2]
[405778703,1771300245481,-500.0,0.00013698,2]
[405778704,1771300245490,-512.04600753,0.00013698,2]
[405778705,1771300245499,-500.0,0.00013698,2]
[405778706,1771300245509,-500.0,0.00013698,2]
[405778707,1771300245519,-500.0,0.00013698,2]
[405778708,1771300245528,-500.0,0.00013698,2]
[405778709,1771300245538,-304.62895111,0.00013698,2]
[405778710,1771300245547,-500.0,0.00013698,2]
[405778711,1771300245556,-500.0,0.00013698,2]
[405778712,1771300245566,-500.0,0.00013698,2]
[405778713,1771300245575,-500.0,0.00013698,2]
[405778714,1771300245585,-500.0,0.00013698,2]
[405778715,1771300245595,-500.0,0.00013698,2]
[405778716,1771300245604,-500.0,0.00013698,2]
[405778717,1771300245614,-500.0,0.00013698,2]
[405778718,1771300245623,-500.0,0.00013698,2]
[405778719,1771300245633,-500.0,0.00013698,2]
[405778720,1771300245642,-500.0,0.00013698,2]
[405778721,1771300245652,-500.0,0.00013698,2]
[405778722,1771300245661,-500.0,0.00013698,2]
[405778723,1771300245670,-500.0,0.00013698,2]
[405778724,1771300245680,-500.0,0.00013698,2]
[405778725,1771300245689,-500.0,0.00013698,2]
[405778726,1771300245699,-500.0,0.00013698,2]
[405778727,1771300245708,-500.0,0.00013698,2]
[405778728,1771300245719,-712.99,0.00013699,2]
[405778729,1771300245728,-183.74,0.00013699,2]
[405778730,1771300245738,-151.02878078,0.00013699,2]
[405778731,1771300245748,-3000.0,0.00013712,2]
[405778732,1771300245757,-24864.33084881,0.00013901,2]
[405778733,1771300245767,-5300.13656815,0.00014044,2]
[405778734,1771300245776,-846.3153877,0.0001426,2]
[405778735,1771300245786,-6453.0,0.00014348,2]
[405778736,1771300245796,-63973.0,0.000144,2]
[405778737,1771300245810,-151.0,0.00014634,2]
[405778738,1771300245819,-151.0,0.00014634,2]
[405778739,1771300245829,-151.0,0.00014634,2]
[405778740,1771300245839,-151.0,0.00014732,2]
[405778741,1771300245848,-3000.0,0.00014732,2]
[405778742,1771300245858,-250.0,0.00014732,2]
[405778743,1771300245867,-721.12765535,0.00014732,2]
[405778744,1771300245877,-250.0,0.00014732,2]
[405778745,1771300245886,-3000.0,0.00014732,2]
[405778746,1771300245896,-250.0,0.00014732,2]
[405778747,1771300245905,-3000.0,0.00014732,2]
[405778748,1771300245915,-250.0,0.00014732,2]
[405778749,1771300245925,-250.0,0.00014732,2]
[405778750,1771300245935,-250.0,0.00014732,2]
[405778751,1771300245944,-160.0,0.00014732,2]
[405778752,1771300245955,-250.0,0.00014732,2]
[405778753,1771300245964,-250.0,0.00014732,2]
[405778754,1771300245973,-250.0,0.00014732,2]
[405778755,1771300245983,-250.0,0.00014732,2]
[405778756,1771300245993,-250.0,0.00014732,2]
[405778757,1771300246007,-250.0,0.00014732,2]
[405778758,1771300246017,-3000.0,0.00014732,2]
[405778759,1771300246027,-1421.82630279,0.00014732,2]
[405778760,1771300246037,-250.0,0.00014732,2]
[405778761,1771300246047,-250.0,0.00014732,2]
[405778762,1771300246058,-250.0,0.00014732,2]
[405778763,1771300246068,-250.0,0.00014732,2]
[405778764,1771300246078,-3000.0,0.00014732,2]
[405778765,1771300246087,-3000.0,0.00014732,2]
[405778766,1771300246097,-151.12957794,0.00014732,2]
[405778768,1771300246364,-250.0,0.00014732,2]
[405778769,1771300246375,-3000.0,0.00014732,2]
[405778770,1771300246386,-299.40346672,0.00014732,2]
[405778771,1771300246396,-3099.28707761,0.00014732,2]
[405778772,1771300246406,-177.7218892,0.00014732,2]
[405778773,1771300246416,-250.0,0.00014732,2]
[405778774,1771300246425,-250.0,0.00014732,2]
[405778775,1771300246436,-151.0,0.00014732,2]
[405778776,1771300246446,-254.77802588,0.00014732,2]
[405778777,1771300246455,-500.0,0.00014732,2]
[405778778,1771300246466,-151.0,0.00014732,2]
[405778779,1771300246476,-500.0,0.00014732,2]
[405778780,1771300246486,-151.0,0.00014732,2]
[405778781,1771300246507,-3000.0,0.00014732,2]
[405778782,1771300246521,-500.0,0.00014732,2]
[405778783,1771300246532,-151.0,0.00014732,2]
[405778784,1771300246543,-3000.0,0.00014732,2]
[405778785,1771300246554,-151.0,0.00014732,2]
[405778786,1771300246564,-1070.81608438,0.00014732,2]
[405778787,1771300246575,-500.0,0.00014732,2]
[405778788,1771300246586,-151.0,0.00014732,2]
[405778789,1771300246597,-500.0,0.00014732,2]
[405778790,1771300246608,-151.0,0.00014732,2]
[405778791,1771300246618,-500.0,0.00014732,2]
[405778792,1771300246629,-261.90795033,0.00014732,2]
[405778793,1771300246640,-500.0,0.00014732,2]
[405778795,1771300246650,-500.0,0.00014732,2]
[405778797,1771300246660,-500.0,0.00014732,2]
[405778798,1771300246671,-500.0,0.00014732,2]
[405778799,1771300246682,-500.0,0.00014732,2]
[405778800,1771300246692,-250.0,0.00014732,2]
[405778801,1771300246702,-250.0,0.00014732,2]
[405778802,1771300246712,-250.0,0.00014732,2]
[405778803,1771300246723,-200.0,0.00014732,2]
[405778804,1771300246733,-250.0,0.00014732,2]
[405778805,1771300246743,-250.0,0.00014732,2]
[405778806,1771300246754,-250.0,0.00014732,2]
[405778807,1771300246765,-250.0,0.00014732,2]
[405778808,1771300246776,-250.0,0.00014732,2]
[405778809,1771300246787,-250.0,0.00014732,2]
[405778810,1771300246797,-250.0,0.00014732,2]
[405778811,1771300246807,-250.0,0.00014732,2]
[405778812,1771300246818,-250.0,0.00014732,2]
[405778813,1771300246828,-279.55615727,0.00014732,2]
[405778814,1771300246838,-250.0,0.00014732,2]
[405778815,1771300246848,-250.0,0.00014732,2]
[405778816,1771300246865,-302.70619241,0.00014732,2]
[405778817,1771300246876,-250.0,0.00014732,2]
[405778818,1771300246887,-250.0,0.00014732,2]
[405778819,1771300246897,-250.0,0.00014732,2]
[405778820,1771300246908,-250.0,0.00014732,2]
[405778821,1771300246919,-500.0,0.00014732,2]
[405778822,1771300246930,-693.3919763,0.00014732,2]
[405778823,1771300246940,-250.0,0.00014732,2]
[405778824,1771300246951,-500.0,0.00014732,2]
[405778825,1771300246962,-250.0,0.00014732,2]
[405778826,1771300246972,-586.96513288,0.00014732,2]
[405778827,1771300246982,-250.0,0.00014732,2]
[405778828,1771300246993,-250.0,0.00014732,2]
[405778829,1771300247003,-250.0,0.00014732,2]
[405778830,1771300247014,-250.0,0.00014732,2]
[405778831,1771300247025,-250.0,0.00014732,2]
[405778832,1771300247037,-250.0,0.00014732,2]
[405778833,1771300247048,-253.83621088,0.00014732,2]
[405778834,1771300247060,-162.380719,0.00014732,2]
[405778835,1771300247070,-151.0,0.00014787,2]
[405778836,1771300247082,-719.04747942,0.00014787,2]
[405778837,1771300247093,-5530.0,0.000148,3]
[405778838,1771300247104,-151.0,0.00014842,2]
[405778839,1771300247115,-745.65223616,0.00014842,2]
[405778840,1771300247126,-151.0,0.00014897,2]
[405778841,1771300247137,-773.2413689,0.00014897,2]
[405778842,1771300247148,-24864.33084881,0.00014901,2]
[405778843,1771300247159,-151.0,0.00014952,2]
[405778844,1771300247171,-801.85129955,0.00014952,2]
[405778845,1771300247181,-250.0,0.00015,2]
[405778846,1771300247195,-151.0,0.00015007,2]
[405778847,1771300247206,-831.51979763,0.00015007,2]
[405778848,1771300247223,-500.0,0.0001503,2]
[405778849,1771300247235,-197.6651859,0.0001503,2]
[405778850,1771300247246,-151.0,0.00015062,2]
[405778851,1771300247257,-862.28603014,0.00015062,2]
[405778852,1771300247269,-160.0,0.00015068,4]
[405778853,1771300247280,-500.0,0.00015099,2]
[405778854,1771300247290,-151.0,0.00015117,2]
[405778855,1771300247301,-894.19061326,0.00015117,2]
[405778856,1771300247312,-151.0,0.00015172,2]
[405778857,1771300247323,-927.27566595,0.00015172,2]
[405778858,1771300247334,-5530.0,0.000152,5]
[405778859,1771300247344,-151.0,0.00015227,2]
[405778860,1771300247355,-961.58486559,0.00015227,2]
[405778861,1771300247366,-160.0,0.00015256,4]
[405778862,1771300247376,-200.0,0.0001528,2]
[405778863,1771300247387,-151.0,0.00015282,2]
[405778864,1771300247398,-997.16350561,0.00015282,2]
[405778865,1771300247408,-5300.13656815,0.00015329,2]
[405778866,1771300247420,-151.0,0.00015337,2]
[405778867,1771300247430,-151.0,0.00015392,2]
[405778868,1771300247441,-151.0,0.00015447,2]
[405778869,1771300247452,-267.05598539,0.00015502,2]
[405778870,1771300247463,-9035.0,0.00015782,2]
[405778871,1771300247474,-24864.33084881,0.00015901,2]
[405778872,1771300247484,-679.08,0.00015959,2]
[405778873,1771300247495,-500.0,0.00015959,2]
[405778874,1771300247506,-1125.16,0.00015959,2]
[405778875,1771300247517,-505.24249427,0.00015959,2]
[405778876,1771300247528,-915.21,0.00015959,2]
[405778877,1771300247539,-5000.0,0.0001596,2]
[405778878,1771300247550,-484.11558281,0.00015982,2]
[405778879,1771300247561,-303.26122484,0.00016,2]
[405778880,1771300247572,-160.32510575,0.00016101,2]
[405778881,1771300247583,-168.3888056,0.00016101,2]
[405778882,1771300247594,-550.98049433,0.00016146,7]
[405778883,1771300247604,-315.90732778,0.00016225,2]
[405778884,1771300247615,-484.11558281,0.00016382,2]
[405778885,1771300247626,-5300.13656815,0.00016615,2]
[405778886,1771300247637,-173.57638878,0.00016677,2]
[405778887,1771300247648,-160.0,0.00016677,2]
[405778888,1771300247658,-24864.33084881,0.000169,2]
[405778889,1771300247668,-679.08,0.00016999,2]
[405778890,1771300247679,-679.08,0.00016999,2]
[405778891,1771300247690,-679.08,0.00016999,2]
[405778892,1771300247700,-679.08,0.00016999,2]
[405778893,1771300247710,-679.22619195,0.00016999,2]
[405778894,1771300247721,-500.0,0.00016999,2]
[405778895,1771300247732,-500.0,0.00016999,2]
[405778896,1771300247744,-500.0,0.00016999,2]
[405778897,1771300247754,-500.0,0.00016999,2]
[405778898,1771300247765,-388.47570654,0.00016999,2]
[405778899,1771300247776,-508.20125622,0.00016999,2]
[405778900,1771300247787,-1125.16,0.00016999,2]
[405778901,1771300247799,-1125.16,0.00016999,2]
[405778902,1771300247811,-1125.16,0.00016999,2]
[405778903,1771300247822,-1125.16,0.00016999,2]
[405778904,1771300247832,-1125.29508189,0.00016999,2]
[405778905,1771300247844,-300.0,0.00017,2]
[405778906,1771300247854,-235.55627713,0.00017084,2]
[405778907,1771300247864,-241.70774661,0.00017096,2]
[405778908,1771300247874,-679.34104264,0.00017231,2]
[405778909,1771300247885,-502.0,0.000173,2]
[405778910,1771300247896,-350.0,0.00017322,2]
[405778911,1771300247906,-12649.0,0.00017361,2]
[405778912,1771300247916,-168.19115038,0.0001747,2]